Cogmind - Beta 14 *** ADVENTURER MODE // 2024.09.07 @ 21:41:27 Player: Mbreton Result: Destroyed by G-47 Trooper with Particle Gun Performance ------------- Evolutions (2) 1000 Regions Visited (5) 1000 Robots Destroyed (35) 175 Value Destroyed (1101) 1101 Prototype IDs (3) 60 Alien Tech Used (0) 0 Bonus (-3) -3 TOTAL SCORE: 3333 Bonus ------- High Alert Combat Kills 22 Friendly Fire -25 Cogmind --------- Core Integrity 0/550 Matter 300/300 Energy 100/100 System Corruption 0% Temperature Cool (18) Movement Walking (120) Location -8/Materials Parts ------- > --- POWER (1) -------- (None) > --- PROPULSION (3) --- Aluminum Leg Aluminum Leg > --- UTILITY (5) ------ Small Storage Unit Advanced ECM Suite Hacking Suite > --- WEAPON (2) ------- Advanced Beam Cannon > --- INVENTORY (8) ---- Light Nuclear Core Huge Storage Unit Improved Datajack Peak State ------------ > --- POWER ------------ Light Nuclear Core > --- PROPULSION ------- Hover Unit Airjet Cesium-ion Thruster > --- UTILITY ---------- Small Storage Unit Advanced Weight Redist. System Advanced ECM Suite Hacking Suite > --- WEAPON ----------- Advanced Beam Cannon High-powered Shotgun > --- INVENTORY -------- Flight Unit Huge Storage Unit Grenade Launcher Rocket Launcher Improved Datajack Heavy Hammer [Rating: 28] Favorites ----------- Power Light Ion Engine Engine Light Ion Engine Power Core Light Nuclear Core Propulsion Wheel Leg Aluminum Leg Wheel Wheel Hover Unit Airjet Flight Unit Cesium-ion Thruster Utility Small Storage Unit Device Advanced Weight Redist. System Storage Small Storage Unit Hackware Hacking Suite Weapon Assault Rifle Energy Gun EM Pulse Gun Energy Cannon Advanced Beam Cannon Ballistic Gun Assault Rifle Launcher Rocket Launcher Impact Weapon Heavy Hammer Special Melee Weapon Improved Datajack Build | -11 -10 -10 -9 -9 -8 ------- Run | Yrd Mat Min Mat Min Mat Slots Evolved 4 | . . . 2 . 2 Power . | . . . . . . Propulsion 1 | . . . 1 . . Utility 3 | . . . 1 . 2 Weapon . | . . . . . . Parts Attached 39 | 6 . . 9 6 18 Power 3 | 1 . . . 1 1 Engine 2 | 1 . . . . 1 Core 1 | . . . . 1 . Reactor . | . . . . . . Propulsion 13 | 2 . . 4 2 5 Treads . | . . . . . . Leg 2 | . . . . . 2 Wheel 2 | 2 . . . . . Hover 5 | . . . 1 2 2 Flight 4 | . . . 3 . 1 Utility 5 | 1 . . 2 . 2 Device 2 | . . . 1 . 1 Storage 1 | 1 . . . . . Processor . | . . . . . . Hackware 2 | . . . 1 . 1 Protection . | . . . . . . Artifact . | . . . . . . Weapon 18 | 2 . . 3 3 10 Energy Gun 2 | 1 . . 1 . . Energy Cannon 3 | . . . 1 . 2 Ballistic Gun 3 | 1 . . . . 2 Ballistic Cannon . | . . . . . . Launcher 5 | . . . 1 2 2 Special Weapon . | . . . . . . Impact Weapon 3 | . . . . . 3 Slashing Weapon . | . . . . . . Piercing Weapon . | . . . . . . Special Melee Weapon 2 | . . . . 1 1 Unidentified Prototypes 1 | . . . 1 . . Parts Lost 13 | . . . . 1 12 Power 3 | . . . . 1 2 Propulsion 4 | . . . . . 4 Utility 2 | . . . . . 2 Weapon 4 | . . . . . 4 Highest Loss Streak 7 | . . . . 1 7 To Critical Strikes . | . . . . . . Average Slot Usage (%) 81 | . 85 85 96 99 63 Engine 7 | . 14 14 11 4 1 Core 2 | . . . . 6 3 Wheel 11 | . 28 28 6 . . Hover 5 | . . . 3 13 7 Flight 7 | . . . 22 20 3 Device 7 | . . . 11 11 12 Storage 11 | . 14 14 11 11 9 Hackware 5 | . . . 7 11 8 Energy Gun 6 | . 14 14 10 . . Energy Cannon 1 | . . . . 1 5 Ballistic Gun 9 | . 14 14 11 11 3 Launcher 2 | . . . . 8 2 Peak Build Rating 28 | 6 6 7 18 21 28 Average Rating 13 | 4 6 6 14 19 18 On Entrance 9 | . 6 6 7 18 21 Naked Turns . | . . . . . . Heaviest Build 22 | 12 12 12 14 16 22 Greatest Support 23 | 20 20 20 17 23 23 Greatest Overweight (x) 7 | . . . . . 7 Average Overweight (x) . | . . . . . . Largest Inventory Capacity 8 | 8 8 8 8 8 8 Average Capacity 7 | 7 8 8 8 8 8 Most Carried 8 | 5 3 8 7 8 8 Average Carried 5 | 1 1 6 4 7 5 Final Capacity 8 | 8 8 8 8 8 8 Final Carried 8 | . 3 8 7 8 3 Class Distribution -------------------- 58% | Hacker-Mutant 41% | Mutant Dominant Class ---------------- Mutant | -10/Materials Mutant | -10/Mines Hacker-Mutant | -9/Materials Hacker-Mutant | -9/Mines Hacker-Mutant | -8/Materials Resources | -11 -10 -10 -9 -9 -8 ----------- Run | Yrd Mat Min Mat Min Mat Matter Collected 781 | 181 94 6 56 116 328 Remotely . | . . . . . . Salvage Created 935 | . 110 51 21 87 666 Parts 49 | . 3 7 3 11 25 Haulers Intercepted . | . . . . . . Recyclers Shooed 2 | . . . . . 2 Parts Field Recycled . | . . . . . . Retrieved Matter . | . . . . . . Parts Self-Destructed . | . . . . . . Prevented . | . . . . . . Kills | -11 -10 -10 -9 -9 -8 ------- Run | Yrd Mat Min Mat Min Mat Combat Hostiles Destroyed 34 | . 2 3 4 6 19 Melee 9 | . . . . . 9 Guns 8 | . 2 3 . . 3 Cannons 3 | . . . . . 3 AOE 13 | . . . 4 6 3 Classes Destroyed 4 | . 1 1 1 . 1 Operator 1 | . . . 1 . . Swarmer 13 | . . 3 4 3 3 Grunt 18 | . 2 . . 3 13 Sentry 3 | . . . . . 3 Best Kill Streak 6 | . 2 3 4 6 6 Combat Bots Only 6 | . 2 3 4 6 6 Max Kills in Single Turn 3 | . 1 2 3 2 3 Gunslinging 1 | . . 1 . . . Exploded 3 | . . . 3 2 3 Melee 1 | . . . . . 1 Uniques/NPCs Destroyed . | . . . . . . Combat | -11 -10 -10 -9 -9 -8 -------- Run | Yrd Mat Min Mat Min Mat Hostile Shots Fired 191 | . 8 3 13 11 156 Missed 49 | . 2 2 8 4 33 Damage Taken 1664 | . 62 27 46 52 1477 Core 607 | . 13 . 24 11 559 Absorbed by Shields . | . . . . . . Ignored by Resistances 485 | . 18 8 13 19 427 Regen/Repaired (Parts) 19 | . . . 19 . . Core Remaining (%) 95 | 100 . 94 . 91 . Volleys Fired 46 | . 5 2 5 8 26 Largest 2 | . 2 2 2 1 2 Hottest 93 | . 60 60 60 33 93 Shots Fired 68 | . 10 4 8 8 38 Gun 37 | . 10 4 6 . 17 Cannon 18 | . . . . . 18 Launcher 13 | . . . 2 8 3 Special . | . . . . . . Kinetic 27 | . 5 2 3 . 17 Thermal 18 | . . . . . 18 Explosive 13 | . . . 2 8 3 Electromagnetic 10 | . 5 2 3 . . Robot Hit Streak 22 | . 7 10 13 6 22 Robot Miss Streak 2 | . 1 . 1 2 1 Penetration Max . | . . . . . . Secondary Targets 2 | . 1 1 . . . Max Gunslinging Chain 1 | . 1 1 . . . Shots Hit Robots 77 | . 8 3 6 9 51 Core Hits 55 | . 4 3 7 8 33 Critical Kills 1 | . . . . . 1 Critical Parts Destroyed 3 | . . . . . 3 Critical Strikes 5 | . . . 1 . 4 Destroy 1 | . . . . . 1 Corrupt 1 | . . . 1 . . Smash 3 | . . . . . 3 Melee Attacks 24 | . . . . 3 21 Impact 21 | . . . . . 21 Slashing . | . . . . . . Piercing . | . . . . . . Sneak Attacks 3 | . . . . 3 . Combat Hostiles . | . . . . . . Follow-up Attacks . | . . . . . . Damage Inflicted 2846 | . 109 35 378 384 1940 Guns 570 | . 109 35 51 . 375 Cannons 309 | . . . . . 309 Explosions 1165 | . . . 327 384 454 Melee 802 | . . . . . 802 Ramming . | . . . . . . Kinetic 442 | . 40 14 13 . 375 Thermal 359 | . . . 50 . 309 Explosive 1115 | . . . 277 384 454 Electromagnetic 128 | . 69 21 38 . . Impact 802 | . . . . . 802 Slashing . | . . . . . . Piercing . | . . . . . . Highest Corruption . | . . . . . . Average Corruption . | . . . . . . Corruption Purged . | . . . . . . Corruption Blocked . | . . . . . . Overload Shots . | . . . . . . Overflow Damage 140 | . . . 17 13 110 Projectiles . | . . . . . . Explosions 42 | . . . 17 13 12 Melee 98 | . . . . . 98 Knockbacks 3 | . . . . . 3 Impact 3 | . . . . . 3 Kinetic . | . . . . . . Secondary . | . . . . . . Self-Inflicted Damage 65 | . . . . 2 63 Shots 4 | . . . . 1 3 Rammed . | . . . . . . Targets Rammed . | . . . . . . Kicked . | . . . . . . Crushed . | . . . . . . Highest Temperature 325 | . 36 . . . 325 Average Temperature 124 | . 24 . . . 143 Received Heat Transfer 1113 | . 36 . 15 27 1035 Effects 5 | . . . . . 5 Energy Bleed 1 | . . . . . 1 Interference 3 | . . . . . 3 Damage (minor) 1 | . . . . . 1 Siege Activations . | . . . . . . Robots Corrupted 1 | . . . . . 1 Combat Hostiles 1 | . . . . . 1 Parts Fried . | . . . . . . Impact Corruptions 3 | . . . . . 3 Robots Melted . | . . . . . . Combat Hostiles . | . . . . . . Parts Melted . | . . . . . . Heat Transferred 655 | . . . 100 . 555 Parts Sabotaged . | . . . . . . Parts Stolen . | . . . . . . Parts Stripped . | . . . . . . Power Chain Reactions 1 | . . . 1 . . Alert | -11 -10 -10 -9 -9 -8 ------- Run | Yrd Mat Min Mat Min Mat Peak Influence 444 | . 50 86 213 244 444 Initial 80 | . . 16 28 69 80 Average 136 | . 32 78 115 191 213 Maximum Alert Level 2 | . . . 1 1 2 Low Security (%) 72 | 100 100 100 97 36 49 Level 1 20 | . . . 2 63 31 Level 2 6 | . . . . . 19 Level 3 . | . . . . . . Level 4 . | . . . . . . Level 5 . | . . . . . . High Security . | . . . . . . Max Security . | . . . . . . Squads Dispatched 4 | . . . . . 4 Investigation 2 | . . . . . 2 Extermination . | . . . . . . Reinforcement 2 | . . . . . 2 Assault . | . . . . . . Garrison . | . . . . . . Intercept . | . . . . . . Searches Triggered . | . . . . . . Construction Impeded 1 | . . . . . 1 Haulers Reinforced . | . . . . . . Active Scanning Responses . | . . . . . . Cargo Convoy Interrupts . | . . . . . . Stealth | -11 -10 -10 -9 -9 -8 --------- Run | Yrd Mat Min Mat Min Mat Distress Signals 2 | . . . . . 2 Communications Jammed . | . . . . . . Distress Signals . | . . . . . . Times Spotted 54 | . 3 3 10 6 32 Peak Tracking Total 7 | . 3 3 5 3 7 Tactical Retreats 1 | . . . . . 1 Traps | -11 -10 -10 -9 -9 -8 ------- Run | Yrd Mat Min Mat Min Mat Traps Triggered 2 | . . 1 . . 1 Indirectly . | . . . . . . Trap Hack Attempts . | . . . . . . Triggered . | . . . . . . Disarmed . | . . . . . . Reprogrammed . | . . . . . . Reused . | . . . . . . Traps Extracted . | . . . . . . Installed . | . . . . . . Triggered . | . . . . . . Machines | -11 -10 -10 -9 -9 -8 ---------- Run | Yrd Mat Min Mat Min Mat Machines Disabled 1 | . . . 1 . . Max in Single Turn 1 | . . . 1 . . Machines Repaired . | . . . . . . Machines Dismantled . | . . . . . . Machines Sabotaged . | . . . . . . Overloaded Fab Kills . | . . . . . . Hacking | -11 -10 -10 -9 -9 -8 --------- Run | Yrd Mat Min Mat Min Mat Machines Accessed 8 | . 1 1 4 . 2 Terminals 4 | . 1 . 2 . 1 Fabricators . | . . . . . . Repair Stations 1 | . . . 1 . . Recycling Units 2 | . . . 1 . 1 Scanalyzers . | . . . . . . Garrison Access . | . . . . . . Total Hacks 17 | . 2 1 7 . 7 Successful 14 | . 2 1 6 . 5 Failed 3 | . . . 1 . 2 Catastrophic . | . . . . . . Database Lockouts . | . . . . . . Manual . | . . . . . . Terminals 10 | . 2 . 4 . 4 Fabricators . | . . . . . . Repair Stations 2 | . . . 2 . . Recycling Units 4 | . . . 1 . 3 Scanalyzers . | . . . . . . Garrison Access . | . . . . . . Terminal Hacks 9 | . 2 1 3 . 3 Open Door 1 | . . 1 . . . Level Access Points 1 | . . . . . 1 Emergency Access Points 1 | . . . 1 . . Terminal Index 1 | . 1 . . . . Recycling Unit Index 1 | . . . 1 . . Unreport Threat 1 | . . . . . 1 Locate Traps 1 | . 1 . . . . Registered Prototypes 2 | . . . 1 . 1 Fabricator Hacks . | . . . . . . Repair Station Hacks 2 | . . . 2 . . Scan Component 1 | . . . 1 . . Repair 1 | . . . 1 . . Recycling Unit Hacks 3 | . . . 1 . 2 Report Inventory 2 | . . . 1 . 1 Retrieve Components 1 | . . . . . 1 Scanalyzer . | . . . . . . Garrison Access Hacks . | . . . . . . Unauthorized Hacks . | . . . . . . Terminals . | . . . . . . Fabricators . | . . . . . . Repair Stations . | . . . . . . Recycling Units . | . . . . . . Scanalyzers . | . . . . . . Garrison Access . | . . . . . . Data Cores Recovered 1 | . . . 1 . . Used . | . . . . . . Hacking Detections 2 | . . . . . 2 Full Trace Events 1 | . . . . . 1 Feedback Events . | . . . . . . Feedback Blocked . | . . . . . . Robot Schematics Acquired . | . . . . . . Robots Built . | . . . . . . Authchips . | . . . . . . Time . | . . . . . . Total Robot Build Rating . | . . . . . . Part Schematics Acquired . | . . . . . . Parts Built . | . . . . . . Authchips . | . . . . . . Time . | . . . . . . Total Part Build Rating . | . . . . . . Parts Repaired 1 | . . . 1 . . Time 38 | . . . 38 . . Parts Recycled . | . . . . . . Recycled Matter . | . . . . . . Retrieved Matter . | . . . . . . Retrieved Components 9 | . . . . . 9 Parts Scanalyzed . | . . . . . . Part Schematics Acquired . | . . . . . . Parts Damaged . | . . . . . . Bothacking | -11 -10 -10 -9 -9 -8 ------------ Run | Yrd Mat Min Mat Min Mat Used RIF Installer . | . . . . . . Robots Hacked 2 | . . . . 2 . Non-combat 1 | . . . . 1 . Combat 1 | . . . . 1 . Robot Hacks Applied 2 | . . . . 2 . parse_system 1 | . . . . 1 . no_distress 1 | . . . . 1 . Relay Couplers Released . | . . . . . . Fabnet Peak Effective % . | . . . . . . Robots Rewired . | . . . . . . Allies Hacked . | . . . . . . Hacks Repelled . | . . . . . . Allies | -11 -10 -10 -9 -9 -8 -------- Run | Yrd Mat Min Mat Min Mat Total Allies . | . . . . . . Largest Group . | . . . . . . Highest-Rated Group . | . . . . . . Highest-Rated Ally . | . . . . . . Total Orders . | . . . . . . Ally Attacks . | . . . . . . Total Damage . | . . . . . . Kills . | . . . . . . Allies Corrupted . | . . . . . . Allies Melted . | . . . . . . Intel | -11 -10 -10 -9 -9 -8 ------- Run | Yrd Mat Min Mat Min Mat Robot Analysis Total . | . . . . . . Derelict Logs Recovered 2 | . . 1 . 1 . Drone Launches . | . . . . . . Drone Recoveries . | . . . . . . Exploration | -11 -10 -10 -9 -9 -8 ------------- Run | Yrd Mat Min Mat Min Mat Turns Passed 1360 | 48 184 297 168 216 447 Spaces Moved 1471 | 49 204 349 199 384 286 Core 33 | 10 . . . . 23 Treads . | . . . . . . Legs 57 | . . . . . 57 Wheels 592 | 39 204 349 . . . Hover 499 | . . . 73 220 206 Flight 290 | . . . 126 164 . Fastest Speed 35 | 50 80 80 35 35 56 Average Speed 70 | 73 80 80 47 47 98 Slowest Speed 400 | 80 80 80 70 56 400 Overloaded Moves . | . . . . . . Propulsion Burnouts . | . . . . . . Robots Hopped . | . . . . . . Cave-ins Triggered . | . . . . . . Exploration Rate (%) 36 | 3 46 81 26 43 17 Regions Visited 5 Branch Regions 2 Pre-discovered Areas 1 | . . . . 1 . Known Exits Taken 1 | . . . . 1 . Unknown Exits Taken 4 | 1 1 1 1 . . Scrap Searched 1 | . . 1 . . . Spaces Dug . | . . . . . . Terrain Destroyed 107 | . . . 13 78 16 Melee . | . . . . . . Projectile . | . . . . . . AOE 107 | . . . 13 78 16 Terrain Rammed . | . . . . . . Walls Destroyed . | . . . . . . Machines Disabled . | . . . . . . Actions | -11 -10 -10 -9 -9 -8 --------- Run | Yrd Mat Min Mat Min Mat Total 1687 | 60 214 365 262 409 377 Wait 62 | . 3 . 43 3 13 Move 1466 | 48 203 348 198 383 286 Hop . | . . . . . . Pick Up 36 | 6 3 10 5 4 8 Fast Attach . | . . . . . . Attach 25 | 6 . . 5 1 13 Detach 1 | . . . . . 1 Swap 14 | . . . 4 5 5 Drop 13 | . . 5 2 2 4 Fire 46 | . 5 2 5 8 26 Melee 24 | . . . . 3 21 Ram . | . . . . . . Kick . | . . . . . . Crush . | . . . . . . Escape Stasis . | . . . . . . Rewire . | . . . . . . Trap . | . . . . . . Miscellaneous . | . . . . . . Route ------- -11/Scrapyard -10/Materials (discovered 2 exits: *Mat / *Min) -10/Mines (discovered 2 exits: *Mat x2) -9/Materials (discovered 2 exits: Mat / [*Min]) -9/Mines -8/Materials (discovered 3 exits: Fac x3) History --------- Turn | Location | Event 29 | -11/Scrapyard | Discovered new exit (range 14) 49 | -11/Scrapyard | Entered Materials 154 | -10/Materials | Discovered new exit (range 16) 195 | -10/Materials | Discovered new exit (range 16) 233 | -10/Materials | Entered Mines 316 | -10/Mines | Build established: Mutant 368 | -10/Mines | Discovered new exit (range 10) 382 | -10/Mines | Learned location of 1 exit from Materials 429 | -10/Mines | Met a Derelict who couldn't figure out how to use a Trap Extractor 513 | -10/Mines | Discovered new exit (range 15) 517 | -10/Mines | Received a Rocket Launcher from a helpful Derelict 530 | -10/Mines | Entered Materials 530 | -9/Materials | Evolved 2 slots: Propulsion x1, Utility x1 531 | -9/Materials | Identified exit to Materials 655 | -9/Materials | Repaired Imp. Datajack 694 | -9/Materials | Discovered new exit (range 6) 698 | -9/Materials | Entered Mines 710 | -9/Mines | Discovered exit to Materials (range 9) 719 | -9/Mines | YI-UF0 nonchalantly dropped a Grenade Launcher on the ground 795 | -9/Mines | Learned location of Zion (-6) 803 | -9/Mines | Assembled infested the area 886 | -9/Mines | Build established: Hacker-Mutant 914 | -9/Mines | Entered Materials 914 | -8/Materials | Evolved 2 slots: Utility x2 978 | -8/Materials | Identified exit to Factory 1120 | -8/Materials | Lost 3 parts (1p2n) 1204 | -8/Materials | Core integrity fell below 50% 1221 | -8/Materials | Core integrity fell below 20% 1263 | -8/Materials | Lost 7 parts (1p1n1u4w) 1361 | -8/Materials | Destroyed by G-47 Trooper with Particle Gun Last Messages --------------- >>Retrieve(Components) Retrieving 9 components... Imp. Heat Sink Wheel Lgt. Ion Engine Welding Torch Particle Gun Wheel Structural Scanner Aluminum Leg Imp. Hover Unit ALERT: Suspicious activity at Recycling Unit M001. Dispatching Investigation squad. Acquired Imp. Hover Unit. Acquired Aluminum Leg. Acquired 3 matter. Acquired 17 matter. G-47 Trooper suffers critical hit (Burn). Critical hit (Burn: +37). Imp. Hover Unit destroyed. Map ----- +----------------------------------------------------+ | ?????????????????????????????????????????????????? | | ?????????????????????????????????????????????????? | | ?????????????????????????????????????????????????? | | ?????????????????????????????????????????????????? | | ????????????????????????????????????????